[Event "Late-Titled-Tuesday-Blitz-February-06-2024"]
[Site "Chess.com"]
[Date "2024.02.06"]
[Round "1"]
[White "Road2GM3000"]
[Black "mitrabhaa"]
[Result "0-1"]
[WhiteElo "2497"]
[BlackElo "2941"]
[TimeControl "180+1"]
[EndTime "14:06:00 PST"]
[Termination "mitrabhaa won by resignation"]

1. d4 {[%clk 0:03:00.9]} 1... Nf6 {[%clk 0:02:57.1]} 2. c4 {[%clk 0:03:01.4]}
2... e6 {[%clk 0:02:57.3]} 3. Nc3 {[%clk 0:03:01.9]} 3... Bb4 {[%clk 0:02:56.1]}
4. Nf3 {[%clk 0:03:02.5]} 4... O-O {[%clk 0:02:55.1]} 5. Bg5 {[%clk 0:03:03]}
5... h6 {[%clk 0:02:52.4]} 6. Bh4 {[%clk 0:03:03.6]} 6... b6 {[%clk 0:02:52.6]}
7. e3 {[%clk 0:03:02.9]} 7... Bb7 {[%clk 0:02:50.3]} 8. Bd3 {[%clk 0:03:03.5]}
8... d6 {[%clk 0:02:49.5]} 9. O-O {[%clk 0:03:01.5]} 9... Bxc3 {[%clk
0:02:49.5]} 10. bxc3 {[%clk 0:03:02.4]} 10... Nbd7 {[%clk 0:02:50.2]} 11. Nd2
{[%clk 0:02:59.3]} 11... e5 {[%clk 0:02:49.3]} 12. e4 {[%clk 0:02:55.6]} 12...
Re8 {[%clk 0:02:48.1]} 13. f4 {[%clk 0:02:52]} 13... exf4 {[%clk 0:02:44]} 14.
Qf3 {[%clk 0:01:59.1]} 14... Nf8 {[%clk 0:02:24.2]} 15. Qxf4 {[%clk 0:01:44.5]}
15... Ng6 {[%clk 0:02:22.7]} 16. Bxf6 {[%clk 0:01:38.7]} 16... Nxf4 {[%clk
0:02:17.4]} 17. Bxd8 {[%clk 0:01:38.9]} 17... Nxd3 {[%clk 0:02:17.9]} 18. Bxc7
{[%clk 0:01:39]} 18... Re6 {[%clk 0:02:04]} 19. Rf3 {[%clk 0:01:21.4]} 19... Nb2
{[%clk 0:02:04]} 20. Raf1 {[%clk 0:01:18.1]} 20... Bxe4 {[%clk 0:01:43.2]} 21.
Rxf7 {[%clk 0:01:03.4]} 21... Bd3 {[%clk 0:01:42.2]} 22. R1f3 {[%clk 0:00:43.6]}
22... Re1+ {[%clk 0:01:41.6]} 23. Nf1 {[%clk 0:00:42.6]} 23... Rxf1+ {[%clk
0:01:41.7]} 24. Rxf1 {[%clk 0:00:41.9]} 24... Bxf1 {[%clk 0:01:42.6]} 25. Rxf1
{[%clk 0:00:39.7]} 25... Nxc4 {[%clk 0:01:43.2]} 26. Re1 {[%clk 0:00:20.3]}
26... Kf7 {[%clk 0:01:43]} 27. Rf1+ {[%clk 0:00:11.1]} 27... Ke7 {[%clk
0:01:42.3]} 28. Rf3 {[%clk 0:00:08.4]} 28... Rc8 {[%clk 0:01:41]} 29. Rg3 {[%clk
0:00:09]} 29... Kf7 {[%clk 0:01:36.7]} 30. Rf3+ {[%clk 0:00:06.5]} 30... Kg8
{[%clk 0:01:36.3]} 31. Bxd6 {[%clk 0:00:05.9]} 31... Nxd6 {[%clk 0:01:36.5]} 32.
Kf1 {[%clk 0:00:06.3]} 32... Nb5 {[%clk 0:01:36.5]} 33. Ke2 {[%clk 0:00:04.7]}
33... Nxc3+ {[%clk 0:01:36.5]} 34. Kd3 {[%clk 0:00:05.4]} 34... Nxa2 {[%clk
0:01:36.4]} 35. Ke4 {[%clk 0:00:05.1]} 35... Nb4 {[%clk 0:01:36.7]} 36. d5
{[%clk 0:00:05]} 36... Re8+ {[%clk 0:01:36.7]} 37. Kd4 {[%clk 0:00:04.8]} 37...
Rd8 {[%clk 0:01:37.3]} 38. Rf5 {[%clk 0:00:05.4]} 38... Rxd5+ {[%clk 0:01:36.4]}
39. Rxd5 {[%clk 0:00:06.3]} 39... Nxd5 {[%clk 0:01:37.2]} 40. Kxd5 {[%clk
0:00:07.2]} 0-1

[Event "Late-Titled-Tuesday-Blitz-February-06-2024"]
[Site "Chess.com"]
[Date "2024.02.06"]
[Round "1"]
[White "Ticondriul"]
[Black "semchik73"]
[Result "1-0"]
[WhiteElo "2721"]
[BlackElo "2384"]
[TimeControl "180+1"]
[EndTime "14:06:01 PST"]
[Termination "Ticondriul won by resignation"]

1. d4 {[%clk 0:02:41.3]} 1... d5 {[%clk 0:02:59.7]} 2. Nf3 {[%clk 0:02:41.5]}
2... c6 {[%clk 0:03:00.1]} 3. e3 {[%clk 0:02:42]} 3... Nf6 {[%clk 0:03:00.5]} 4.
Bd3 {[%clk 0:02:42.6]} 4... Bg4 {[%clk 0:02:59.7]} 5. O-O {[%clk 0:02:42.4]}
5... e6 {[%clk 0:03:00]} 6. c4 {[%clk 0:02:41.7]} 6... Be7 {[%clk 0:02:59.9]} 7.
h3 {[%clk 0:02:42]} 7... Bh5 {[%clk 0:02:59.5]} 8. Nbd2 {[%clk 0:02:41.6]} 8...
O-O {[%clk 0:02:58.1]} 9. b3 {[%clk 0:02:41.4]} 9... Nbd7 {[%clk 0:02:55.1]} 10.
Bb2 {[%clk 0:02:20.8]} 10... Rc8 {[%clk 0:02:43.4]} 11. a3 {[%clk 0:02:15.8]}
11... c5 {[%clk 0:02:36.3]} 12. Qe2 {[%clk 0:02:10.5]} 12... cxd4 {[%clk
0:02:34.7]} 13. Bxd4 {[%clk 0:02:08]} 13... Nc5 {[%clk 0:02:30.3]} 14. Bxc5
{[%clk 0:02:05.3]} 14... Bxc5 {[%clk 0:02:29.8]} 15. b4 {[%clk 0:02:04.1]} 15...
Bd6 {[%clk 0:02:26.5]} 16. Rfd1 {[%clk 0:01:57.5]} 16... Bb8 {[%clk 0:02:20.3]}
17. Rac1 {[%clk 0:01:55.1]} 17... e5 {[%clk 0:02:07.7]} 18. Bf5 {[%clk
0:01:53.9]} 18... e4 {[%clk 0:02:04.7]} 19. Nxe4 {[%clk 0:01:53.6]} 19... Nxe4
{[%clk 0:01:51]} 20. Bxe4 {[%clk 0:01:51.8]} 20... dxe4 {[%clk 0:01:41.8]} 21.
Rxd8 {[%clk 0:01:51.1]} 21... Rfxd8 {[%clk 0:01:42]} 22. g4 {[%clk 0:01:50.4]}
22... exf3 {[%clk 0:01:42.1]} 23. Qxf3 {[%clk 0:01:50.7]} 23... Bg6 {[%clk
0:01:40.9]} 24. Qxb7 {[%clk 0:01:48]} 24... Rc7 {[%clk 0:01:37.9]} 25. Qf3
{[%clk 0:01:46.7]} 25... Rcd7 {[%clk 0:01:33.6]} 26. c5 {[%clk 0:01:40.3]} 26...
Be5 {[%clk 0:01:31.9]} 27. c6 {[%clk 0:01:37.2]} 27... Rc7 {[%clk 0:01:27.1]}
28. b5 {[%clk 0:01:33.5]} 28... Rd6 {[%clk 0:01:25.1]} 29. a4 {[%clk 0:01:33]}
29... h6 {[%clk 0:01:15.4]} 30. Rc5 {[%clk 0:01:31.3]} 30... Bf6 {[%clk
0:01:11.4]} 31. a5 {[%clk 0:01:30.8]} 31... Re6 {[%clk 0:01:07.3]} 32. b6 {[%clk
0:01:29.6]} 32... axb6 {[%clk 0:00:59.5]} 33. axb6 {[%clk 0:01:29.5]} 33... Rce7
{[%clk 0:00:46.5]} 34. c7 {[%clk 0:01:28.4]} 34... Be4 {[%clk 0:00:36.7]} 35.
c8=Q+ {[%clk 0:01:27]} 35... Re8 {[%clk 0:00:35.3]} 36. Qxe6 {[%clk 0:01:24]}
36... Rxe6 {[%clk 0:00:35]} 37. Qd1 {[%clk 0:01:23.5]} 37... Rxb6 {[%clk
0:00:34.5]} 38. Qd7 {[%clk 0:01:20.5]} 38... Rb1+ {[%clk 0:00:29.7]} 39. Kh2
{[%clk 0:01:20.2]} 39... Bh4 {[%clk 0:00:29.7]} 40. Qe8+ {[%clk 0:01:19.9]}
40... Kh7 {[%clk 0:00:28.7]} 41. Qxe4+ {[%clk 0:01:20.8]} 1-0

[Event "Late-Titled-Tuesday-Blitz-February-06-2024"]
[Site "Chess.com"]
[Date "2024.02.06"]
[Round "1"]
[White "Veleamater"]
[Black "AndreyOstrovskiy"]
[Result "0-1"]
[WhiteElo "2342"]
[BlackElo "2659"]
[TimeControl "180+1"]
[EndTime "14:06:02 PST"]
[Termination "AndreyOstrovskiy won by resignation"]

1. g3 {[%clk 0:03:00.9]} 1... d5 {[%clk 0:02:59.2]} 2. Bg2 {[%clk 0:03:00.6]}
2... Nf6 {[%clk 0:02:59.8]} 3. d3 {[%clk 0:03:01.3]} 3... h5 {[%clk 0:02:58.8]}
4. Nf3 {[%clk 0:03:01.8]} 4... Nc6 {[%clk 0:02:57.7]} 5. O-O {[%clk 0:02:56.5]}
5... e5 {[%clk 0:02:57.4]} 6. Nc3 {[%clk 0:02:54.5]} 6... d4 {[%clk 0:02:56.7]}
7. Ne4 {[%clk 0:02:54]} 7... Nxe4 {[%clk 0:02:56.1]} 8. dxe4 {[%clk 0:02:54.9]}
8... f6 {[%clk 0:02:50.3]} 9. e3 {[%clk 0:02:51.9]} 9... Bg4 {[%clk 0:02:43]}
10. h3 {[%clk 0:02:48.4]} 10... Be6 {[%clk 0:02:41.9]} 11. exd4 {[%clk
0:02:47.7]} 11... exd4 {[%clk 0:02:41.7]} 12. Ne1 {[%clk 0:02:46.4]} 12... Qd7
{[%clk 0:02:40.7]} 13. Kh2 {[%clk 0:02:46.2]} 13... h4 {[%clk 0:02:40.5]} 14. g4
{[%clk 0:02:45.8]} 14... g5 {[%clk 0:02:39.9]} 15. Nd3 {[%clk 0:02:45.4]} 15...
Bd6+ {[%clk 0:02:38.5]} 16. Kh1 {[%clk 0:02:45.3]} 16... O-O-O {[%clk
0:02:37.5]} 17. Bd2 {[%clk 0:02:44.3]} 17... Ne5 {[%clk 0:02:36.8]} 18. Qe2
{[%clk 0:02:41.2]} 18... c5 {[%clk 0:02:35.4]} 19. b3 {[%clk 0:02:37.5]} 19...
Kb8 {[%clk 0:02:28.2]} 20. Nb2 {[%clk 0:02:35.7]} 20... Ng6 {[%clk 0:02:26.4]}
21. f3 {[%clk 0:02:35.1]} 21... Bf4 {[%clk 0:02:22]} 22. Be1 {[%clk 0:02:31.2]}
22... Be3 {[%clk 0:02:08]} 23. a4 {[%clk 0:02:25.9]} 23... Nf4 {[%clk
0:02:06.7]} 24. Qd1 {[%clk 0:02:25.7]} 24... d3 {[%clk 0:01:42.6]} 25. Nxd3
{[%clk 0:02:22.4]} 25... Nxd3 {[%clk 0:01:42]} 26. cxd3 {[%clk 0:02:12]} 26...
Qxd3 {[%clk 0:01:42.9]} 27. Qb1 {[%clk 0:02:08.7]} 27... Bxb3 {[%clk 0:01:32.5]}
28. Ba5 {[%clk 0:01:54.2]} 28... b6 {[%clk 0:01:27.7]} 29. Qxd3 {[%clk
0:01:51.4]} 29... Rxd3 {[%clk 0:01:26.9]} 30. Be1 {[%clk 0:01:51.9]} 30... c4
{[%clk 0:01:24.7]} 31. Bb4 {[%clk 0:01:45.8]} 31... Re8 {[%clk 0:01:17.5]} 32.
Rfe1 {[%clk 0:01:39.7]} 32... a5 {[%clk 0:01:09.3]} 33. Ba3 {[%clk 0:01:38.1]}
33... Bd2 {[%clk 0:01:00.6]} 34. Rg1 {[%clk 0:01:36.2]} 34... c3 {[%clk
0:00:59.2]} 35. Bf1 {[%clk 0:01:36.3]} 35... Rxf3 {[%clk 0:00:58.7]} 36. Bb5
{[%clk 0:01:35.7]} 36... Rxe4 {[%clk 0:00:51.6]} 37. Bd6+ {[%clk 0:01:28.8]}
37... Kb7 {[%clk 0:00:50.8]} 38. Rgf1 {[%clk 0:01:27.7]} 38... Rxh3+ {[%clk
0:00:49.6]} 39. Kg2 {[%clk 0:01:27.6]} 39... Rhe3 {[%clk 0:00:38]} 40. Rxf6
{[%clk 0:01:26.6]} 40... Rxg4+ {[%clk 0:00:37.4]} 41. Kf2 {[%clk 0:01:25.6]}
41... Rd4 {[%clk 0:00:30.4]} 42. Rf7+ {[%clk 0:01:25]} 42... Bxf7 {[%clk
0:00:30]} 0-1

[Event "Late-Titled-Tuesday-Blitz-February-06-2024"]
[Site "Chess.com"]
[Date "2024.02.06"]
[Round "1"]
[White "best926"]
[Black "ChEsper99"]
[Result "1-0"]
[WhiteElo "2606"]
[BlackElo "2223"]
[TimeControl "180+1"]
[EndTime "14:06:02 PST"]
[Termination "best926 won on time"]

1. Nf3 {[%clk 0:03:00.9]} 1... d5 {[%clk 0:02:55.1]} 2. g3 {[%clk 0:03:01.4]}
2... g6 {[%clk 0:02:53.6]} 3. Bg2 {[%clk 0:03:01.8]} 3... Bg7 {[%clk 0:02:53.5]}
4. O-O {[%clk 0:03:02.7]} 4... e5 {[%clk 0:02:53.6]} 5. d3 {[%clk 0:03:03.3]}
5... Ne7 {[%clk 0:02:49.9]} 6. Nbd2 {[%clk 0:03:03.9]} 6... Nbc6 {[%clk
0:02:49.9]} 7. e4 {[%clk 0:03:02.3]} 7... O-O {[%clk 0:02:39.9]} 8. c3 {[%clk
0:03:02.6]} 8... h6 {[%clk 0:02:38.9]} 9. Re1 {[%clk 0:03:02.8]} 9... Be6 {[%clk
0:02:38.7]} 10. b4 {[%clk 0:03:02.9]} 10... a6 {[%clk 0:02:34]} 11. a4 {[%clk
0:03:03.1]} 11... Qd7 {[%clk 0:02:26.9]} 12. Bb2 {[%clk 0:03:02.7]} 12... dxe4
{[%clk 0:02:24]} 13. dxe4 {[%clk 0:03:02]} 13... Kh7 {[%clk 0:02:14.9]} 14. Qc2
{[%clk 0:02:57.2]} 14... Rfd8 {[%clk 0:02:11.7]} 15. Bf1 {[%clk 0:02:56.8]}
15... Rf8 {[%clk 0:01:54.3]} 16. Nc4 {[%clk 0:02:53.9]} 16... f6 {[%clk
0:01:50.4]} 17. Rad1 {[%clk 0:02:52.9]} 17... Qe8 {[%clk 0:01:50.9]} 18. Ne3
{[%clk 0:02:50.9]} 18... Qf7 {[%clk 0:01:50.2]} 19. b5 {[%clk 0:02:46.4]} 19...
axb5 {[%clk 0:01:47.1]} 20. axb5 {[%clk 0:02:47.3]} 20... Bb3 {[%clk 0:01:47.1]}
21. Qc1 {[%clk 0:02:43.1]} 21... Bxd1 {[%clk 0:01:47.5]} 22. Qxd1 {[%clk
0:02:44]} 22... Na5 {[%clk 0:01:46.9]} 23. h4 {[%clk 0:02:42.1]} 23... Rfd8
{[%clk 0:01:44.2]} 24. Qc2 {[%clk 0:02:42.4]} 24... h5 {[%clk 0:01:44.2]} 25. c4
{[%clk 0:02:38.2]} 25... c6 {[%clk 0:01:40.1]} 26. b6 {[%clk 0:02:35.3]} 26...
c5 {[%clk 0:01:34]} 27. Nd5 {[%clk 0:02:30.4]} 27... Nac6 {[%clk 0:01:28.7]} 28.
g4 {[%clk 0:02:20.5]} 28... hxg4 {[%clk 0:01:25.8]} 29. Nh2 {[%clk 0:02:21.2]}
29... Nxd5 {[%clk 0:01:22.1]} 30. exd5 {[%clk 0:02:20.2]} 30... Nd4 {[%clk
0:01:23]} 31. Bxd4 {[%clk 0:02:16]} 31... exd4 {[%clk 0:01:21.3]} 32. h5 {[%clk
0:02:13.8]} 32... f5 {[%clk 0:01:17.9]} 33. Bd3 {[%clk 0:02:12.9]} 33... gxh5
{[%clk 0:01:18.2]} 34. Bxf5+ {[%clk 0:02:12.5]} 34... Kh8 {[%clk 0:01:16.2]} 35.
Re6 {[%clk 0:02:04.3]} 35... Re8 {[%clk 0:01:08.9]} 36. Qe4 {[%clk 0:02:04.7]}
36... Rxe6 {[%clk 0:01:07.3]} 37. dxe6 {[%clk 0:02:05.6]} 37... Qf6 {[%clk
0:01:02.1]} 38. Nf1 {[%clk 0:02:05.6]} 38... Ra1 {[%clk 0:00:47.9]} 39. Kg2
{[%clk 0:02:04.6]} 39... Ra2 {[%clk 0:00:39.8]} 40. e7 {[%clk 0:02:01.6]} 40...
Ra8 {[%clk 0:00:12]} 41. Bg6 {[%clk 0:02:01.5]} 41... Qe5 {[%clk 0:00:06]} 42.
Qxe5 {[%clk 0:02:01]} 42... Bxe5 {[%clk 0:00:05.4]} 43. e8=Q+ {[%clk 0:02:01.9]}
43... Rxe8 {[%clk 0:00:05.1]} 44. Bxe8 {[%clk 0:02:02.8]} 44... d3 {[%clk
0:00:03.3]} 45. Bxh5 {[%clk 0:02:00.6]} 45... Bc3 {[%clk 0:00:02.6]} 46. Bxg4
{[%clk 0:02:00.5]} 46... d2 {[%clk 0:00:03.1]} 47. Ne3 {[%clk 0:01:59.9]} 47...
Ba5 {[%clk 0:00:03]} 48. Nd5 {[%clk 0:01:59.8]} 48... Kg7 {[%clk 0:00:01.8]} 49.
Kf1 {[%clk 0:02:00.2]} 49... Kg6 {[%clk 0:00:02.1]} 50. Ke2 {[%clk 0:02:00.8]}
50... Kg5 {[%clk 0:00:02.7]} 51. Bc8 {[%clk 0:02:01.5]} 1-0

[Event "Late-Titled-Tuesday-Blitz-February-06-2024"]
[Site "Chess.com"]
[Date "2024.02.06"]
[Round "1"]
[White "olawsson"]
[Black "chessisveryfun1264"]
[Result "0-1"]
[WhiteElo "2169"]
[BlackElo "2579"]
[TimeControl "180+1"]
[EndTime "14:06:02 PST"]
[Termination "chessisveryfun1264 won on time"]

1. d4 {[%clk 0:03:00.9]} 1... e6 {[%clk 0:02:36.4]} 2. c4 {[%clk 0:02:59.7]}
2... b6 {[%clk 0:02:01]} 3. Nf3 {[%clk 0:02:50.7]} 3... Bb7 {[%clk 0:02:01.1]}
4. g3 {[%clk 0:02:51.1]} 4... Bb4+ {[%clk 0:02:01.7]} 5. Nbd2 {[%clk 0:02:47.6]}
5... f5 {[%clk 0:02:01.6]} 6. Bg2 {[%clk 0:02:45.3]} 6... Nf6 {[%clk 0:02:02.1]}
7. O-O {[%clk 0:02:45.5]} 7... O-O {[%clk 0:02:01.9]} 8. a3 {[%clk 0:02:26.9]}
8... Bxd2 {[%clk 0:02:01.2]} 9. Bxd2 {[%clk 0:02:08.5]} 9... d6 {[%clk
0:02:00.1]} 10. b4 {[%clk 0:02:03.8]} 10... Ne4 {[%clk 0:01:56.7]} 11. Qc2
{[%clk 0:01:54.6]} 11... Nd7 {[%clk 0:01:56.2]} 12. Rfd1 {[%clk 0:01:52.3]}
12... Rc8 {[%clk 0:01:55.3]} 13. Be1 {[%clk 0:01:51.9]} 13... Qe7 {[%clk
0:01:53.9]} 14. Rab1 {[%clk 0:01:32.4]} 14... Ndf6 {[%clk 0:01:48]} 15. c5
{[%clk 0:01:23]} 15... bxc5 {[%clk 0:01:44.1]} 16. bxc5 {[%clk 0:01:14.6]} 16...
Bd5 {[%clk 0:01:43.5]} 17. Bb4 {[%clk 0:01:00.7]} 17... Qd7 {[%clk 0:01:39.4]}
18. Rdc1 {[%clk 0:00:51.9]} 18... Ng4 {[%clk 0:01:38.3]} 19. c6 {[%clk
0:00:39.2]} 19... Qe7 {[%clk 0:01:31.6]} 20. Be1 {[%clk 0:00:39.2]} 20... Rb8
{[%clk 0:01:26.3]} 21. Qa4 {[%clk 0:00:38.6]} 21... Rxb1 {[%clk 0:01:18.7]} 22.
Rxb1 {[%clk 0:00:38.4]} 22... Qe8 {[%clk 0:01:07.7]} 23. Qxa7 {[%clk 0:00:19.2]}
23... Qxc6 {[%clk 0:01:06.9]} 24. h3 {[%clk 0:00:06.6]} 24... Ngf6 {[%clk
0:01:01.4]} 0-1

[Event "Late-Titled-Tuesday-Blitz-February-06-2024"]
[Site "Chess.com"]
[Date "2024.02.06"]
[Round "1"]
[White "karinachess1"]
[Black "youngdinousaur"]
[Result "1-0"]
[WhiteElo "2649"]
[BlackElo "2332"]
[TimeControl "180+1"]
[EndTime "14:06:07 PST"]
[Termination "karinachess1 won by checkmate"]

1. d4 {[%clk 0:03:00.9]} 1... Nf6 {[%clk 0:03:00]} 2. c4 {[%clk 0:03:00.9]} 2...
e6 {[%clk 0:03:00.9]} 3. Nc3 {[%clk 0:03:01]} 3... Bb4 {[%clk 0:03:00.4]} 4. a3
{[%clk 0:03:00.8]} 4... Bxc3+ {[%clk 0:03:00.3]} 5. bxc3 {[%clk 0:03:01.7]} 5...
d5 {[%clk 0:03:01.2]} 6. e3 {[%clk 0:03:02.3]} 6... c5 {[%clk 0:02:58.8]} 7. Bd3
{[%clk 0:03:02.3]} 7... Nc6 {[%clk 0:02:57.7]} 8. Ne2 {[%clk 0:03:02.4]} 8...
O-O {[%clk 0:02:55.9]} 9. O-O {[%clk 0:03:02.4]} 9... b6 {[%clk 0:02:55.1]} 10.
f3 {[%clk 0:03:02]} 10... Bb7 {[%clk 0:02:54.2]} 11. cxd5 {[%clk 0:02:56.7]}
11... exd5 {[%clk 0:02:53.6]} 12. g4 {[%clk 0:02:56.6]} 12... h6 {[%clk
0:02:52.4]} 13. Ng3 {[%clk 0:02:56.6]} 13... Re8 {[%clk 0:02:45.3]} 14. Ra2
{[%clk 0:02:44.2]} 14... Qc7 {[%clk 0:02:39.7]} 15. Rg2 {[%clk 0:02:43.3]} 15...
Rad8 {[%clk 0:02:38.6]} 16. h4 {[%clk 0:02:43]} 16... Nd7 {[%clk 0:02:29]} 17.
g5 {[%clk 0:02:40.2]} 17... hxg5 {[%clk 0:02:28.8]} 18. hxg5 {[%clk 0:02:41.1]}
18... Nf8 {[%clk 0:02:27.8]} 19. Nh5 {[%clk 0:02:36]} 19... Rd6 {[%clk
0:02:11.8]} 20. Qe1 {[%clk 0:02:08.7]} 20... Ng6 {[%clk 0:02:07.1]} 21. Qg3
{[%clk 0:02:03.4]} 21... Rd7 {[%clk 0:01:56.6]} 22. Qh3 {[%clk 0:01:59.2]} 22...
Bc8 {[%clk 0:01:54.2]} 23. Rh2 {[%clk 0:01:40.2]} 23... Rd6 {[%clk 0:01:49.1]}
24. Qg3 {[%clk 0:01:07.8]} 24... Rd7 {[%clk 0:01:46]} 25. f4 {[%clk 0:01:08.3]}
25... cxd4 {[%clk 0:01:40.7]} 26. cxd4 {[%clk 0:01:07.2]} 26... Kf8 {[%clk
0:01:16.1]} 27. Nf6 {[%clk 0:00:57]} 27... gxf6 {[%clk 0:01:09.6]} 28. gxf6
{[%clk 0:00:57.9]} 28... Re5 {[%clk 0:00:29.3]} 29. Rh8+ {[%clk 0:00:53.9]}
29... Nxh8 {[%clk 0:00:22.9]} 30. Qg7+ {[%clk 0:00:53.8]} 30... Ke8 {[%clk
0:00:22.3]} 31. Qg8# {[%clk 0:00:54.4]} 1-0

[Event "Late-Titled-Tuesday-Blitz-February-06-2024"]
[Site "Chess.com"]
[Date "2024.02.06"]
[Round "1"]
[White "NoHeThTo"]
[Black "Chessdude1987"]
[Result "1-0"]
[WhiteElo "2615"]
[BlackElo "2284"]
[TimeControl "180+1"]
[EndTime "14:06:11 PST"]
[Termination "NoHeThTo won on time"]

1. d4 {[%clk 0:03:00.9]} 1... e6 {[%clk 0:02:59.7]} 2. Nc3 {[%clk 0:03:01.5]}
2... d5 {[%clk 0:02:58.7]} 3. Bf4 {[%clk 0:03:02]} 3... f5 {[%clk 0:02:57.6]} 4.
g4 {[%clk 0:03:00.9]} 4... fxg4 {[%clk 0:02:55.8]} 5. e4 {[%clk 0:03:01.1]} 5...
dxe4 {[%clk 0:02:54]} 6. Qxg4 {[%clk 0:03:00.9]} 6... Nf6 {[%clk 0:02:53.6]} 7.
Qh4 {[%clk 0:02:59.3]} 7... Bd6 {[%clk 0:02:52.4]} 8. O-O-O {[%clk 0:02:56]}
8... O-O {[%clk 0:02:43]} 9. Be5 {[%clk 0:02:48.1]} 9... Qe8 {[%clk 0:02:29.5]}
10. Nge2 {[%clk 0:02:36.5]} 10... Nc6 {[%clk 0:02:27.2]} 11. Bxf6 {[%clk
0:02:29.9]} 11... Rxf6 {[%clk 0:02:23]} 12. Nxe4 {[%clk 0:02:30]} 12... Rh6
{[%clk 0:02:20.3]} 13. Nxd6 {[%clk 0:02:29.6]} 13... cxd6 {[%clk 0:02:18.8]} 14.
Qe4 {[%clk 0:02:29.5]} 14... Qf7 {[%clk 0:02:00.1]} 15. f4 {[%clk 0:02:16.7]}
15... e5 {[%clk 0:01:53.7]} 16. dxe5 {[%clk 0:02:14.6]} 16... dxe5 {[%clk
0:01:46.7]} 17. fxe5 {[%clk 0:02:11.4]} 17... Bf5 {[%clk 0:01:46.2]} 18. Qf4
{[%clk 0:02:08]} 18... Qxa2 {[%clk 0:01:37.3]} 19. Qxf5 {[%clk 0:02:05.1]} 19...
Qa1+ {[%clk 0:01:35.4]} 20. Kd2 {[%clk 0:02:05.3]} 20... Rd8+ {[%clk 0:01:35.3]}
21. Qd3 {[%clk 0:01:50.6]} 21... Rxd3+ {[%clk 0:01:28.5]} 22. cxd3 {[%clk
0:01:51.5]} 22... Qxb2+ {[%clk 0:01:28.3]} 23. Ke1 {[%clk 0:01:51.5]} 23... Nxe5
{[%clk 0:01:16.9]} 24. Bg2 {[%clk 0:01:50.7]} 24... Rd6 {[%clk 0:01:06.3]} 25.
Be4 {[%clk 0:01:41.7]} 25... Qb4+ {[%clk 0:01:02.3]} 26. Kf2 {[%clk 0:01:37.2]}
26... Ng4+ {[%clk 0:01:01.5]} 27. Kg3 {[%clk 0:01:37.1]} 27... Nf6 {[%clk
0:00:55.9]} 28. Bf3 {[%clk 0:01:35]} 28... g5 {[%clk 0:00:48.6]} 29. h4 {[%clk
0:01:33.6]} 29... g4 {[%clk 0:00:47.7]} 30. Bg2 {[%clk 0:01:31.8]} 30... Nh5+
{[%clk 0:00:46.2]} 31. Kh2 {[%clk 0:01:30.6]} 31... g3+ {[%clk 0:00:44.8]} 32.
Kh3 {[%clk 0:01:30.9]} 32... Rg6 {[%clk 0:00:35.1]} 33. Be4 {[%clk 0:01:27]}
33... Rg7 {[%clk 0:00:30.9]} 34. Rhf1 {[%clk 0:01:20.8]} 34... g2 {[%clk
0:00:25]} 35. Rf5 {[%clk 0:01:20.2]} 35... Qa4 {[%clk 0:00:05.3]} 36. Bd5+
{[%clk 0:01:18.1]} 1-0

[Event "Late-Titled-Tuesday-Blitz-February-06-2024"]
[Site "Chess.com"]
[Date "2024.02.06"]
[Round "1"]
[White "OneTrickPony_82"]
[Black "katharinareinecke"]
[Result "1-0"]
[WhiteElo "2542"]
[BlackElo "1966"]
[TimeControl "180+1"]
[EndTime "14:06:14 PST"]
[Termination "OneTrickPony_82 won by resignation"]

1. d4 {[%clk 0:03:00.9]} 1... d5 {[%clk 0:02:59.2]} 2. c4 {[%clk 0:03:00.7]}
2... c6 {[%clk 0:02:58.7]} 3. Nf3 {[%clk 0:03:00.6]} 3... Nf6 {[%clk 0:02:57.6]}
4. cxd5 {[%clk 0:03:00.9]} 4... cxd5 {[%clk 0:02:56.7]} 5. Nc3 {[%clk
0:03:01.5]} 5... e6 {[%clk 0:02:56]} 6. Bf4 {[%clk 0:03:01.6]} 6... a6 {[%clk
0:02:52.5]} 7. e3 {[%clk 0:03:01.2]} 7... Bd6 {[%clk 0:02:51.9]} 8. Bg3 {[%clk
0:03:00.9]} 8... O-O {[%clk 0:02:51.2]} 9. Bd3 {[%clk 0:03:01.4]} 9... b5 {[%clk
0:02:45.2]} 10. a4 {[%clk 0:02:58]} 10... b4 {[%clk 0:02:45]} 11. Nb1 {[%clk
0:02:57.9]} 11... a5 {[%clk 0:02:37.6]} 12. Nbd2 {[%clk 0:02:52.9]} 12... Ba6
{[%clk 0:02:36.7]} 13. Qe2 {[%clk 0:02:52.9]} 13... Bxd3 {[%clk 0:02:28.8]} 14.
Qxd3 {[%clk 0:02:52.9]} 14... Nc6 {[%clk 0:02:16.8]} 15. Bh4 {[%clk 0:02:46.1]}
15... Be7 {[%clk 0:02:12.3]} 16. O-O {[%clk 0:02:45.9]} 16... Qd7 {[%clk
0:01:55.9]} 17. Rfc1 {[%clk 0:02:44.2]} 17... Rfc8 {[%clk 0:01:52.2]} 18. Bxf6
{[%clk 0:02:31.5]} 18... Bxf6 {[%clk 0:01:51.5]} 19. Nb3 {[%clk 0:02:32.1]}
19... Be7 {[%clk 0:01:47]} 20. Nc5 {[%clk 0:02:28.6]} 20... Bxc5 {[%clk
0:01:45.7]} 21. Rxc5 {[%clk 0:02:28.4]} 21... Ne7 {[%clk 0:01:39.1]} 22. Ne5
{[%clk 0:02:25.3]} 22... Qa7 {[%clk 0:01:23.7]} 23. Rac1 {[%clk 0:02:19.6]}
23... Rxc5 {[%clk 0:01:16.7]} 24. Rxc5 {[%clk 0:02:19.2]} 24... Rc8 {[%clk
0:01:16.6]} 25. Qb5 {[%clk 0:02:17.7]} 25... Rb8 {[%clk 0:00:42]} 26. Qxa5
{[%clk 0:02:02.1]} 26... Qxa5 {[%clk 0:00:35.6]} 27. Rxa5 {[%clk 0:02:02]} 27...
f6 {[%clk 0:00:34.9]} 28. Nd3 {[%clk 0:01:58]} 28... Nf5 {[%clk 0:00:26.4]} 29.
Nc5 {[%clk 0:01:49.7]} 29... e5 {[%clk 0:00:19.9]} 30. dxe5 {[%clk 0:01:38.9]}
30... fxe5 {[%clk 0:00:20]} 31. g4 {[%clk 0:01:34]} 31... Ne7 {[%clk 0:00:18.5]}
32. Ra7 {[%clk 0:01:24.8]} 32... Kf7 {[%clk 0:00:18.1]} 33. Nd7 {[%clk
0:01:20.8]} 33... Rd8 {[%clk 0:00:09.7]} 34. Nxe5+ {[%clk 0:01:20.1]} 34... Ke6
{[%clk 0:00:10.6]} 35. Rxe7+ {[%clk 0:01:19.6]} 35... Kxe7 {[%clk 0:00:10.5]}
36. Nc6+ {[%clk 0:01:19.9]} 36... Kd7 {[%clk 0:00:10.9]} 37. Nxd8 {[%clk
0:01:20.5]} 37... Kxd8 {[%clk 0:00:11.8]} 38. Kf1 {[%clk 0:01:19.9]} 38... Kd7
{[%clk 0:00:12.7]} 39. b3 {[%clk 0:01:19.6]} 39... Kd6 {[%clk 0:00:13.6]} 40.
Ke2 {[%clk 0:01:19.6]} 40... Kc5 {[%clk 0:00:14.5]} 41. Kd3 {[%clk 0:01:19.7]}
41... d4 {[%clk 0:00:15.4]} 42. exd4+ {[%clk 0:01:19.1]} 42... Kd5 {[%clk
0:00:15.5]} 43. f4 {[%clk 0:01:18.4]} 1-0